[Event "Championnat d'Europe Rapide"]
[Date "2024.12.08"]
[White "Zhukovskyi, Myhaylo"]
[Black "Jacimovic, Dragoljub"]
[WhiteElo "2189"]
[BlackElo "2358"]
[Round "9.54"]
[Result "0-1"]
[TimeControl "900+10"]

1. Nf3 {[%emt 00:00:01] [%clk 00:15:18]} Nf6 {[%emt 00:00:07] [%clk 00:15:13]}
2. g3 {[%emt 00:00:02] [%clk 00:15:27]} g6 {[%emt 00:00:06] [%clk 00:15:16]} 3.
Bg2 {[%emt 00:00:02] [%clk 00:15:35]} Bg7 {[%emt 00:00:03] [%clk 00:15:22]} 4.
O-O {[%emt 00:00:03] [%clk 00:15:43]} O-O {[%emt 00:00:04] [%clk 00:15:28]} 5.
d4 {[%emt 00:00:02] [%clk 00:15:51]} d6 {[%emt 00:00:25] [%clk 00:15:14]} 6. c4
{[%emt 00:00:01] [%clk 00:16:00]} c6 {[%emt 00:00:02] [%clk 00:15:22]} 7. Nc3
{[%emt 00:00:02] [%clk 00:16:08]} Qb6 {[%emt 00:00:02] [%clk 00:15:29]} 8. Qc2
{[%emt 00:01:24] [%clk 00:14:55]} Qa6 {[%emt 00:01:23] [%clk 00:14:16]} 9. b3
{[%emt 00:00:16] [%clk 00:14:49]} d5 {[%emt 00:00:36] [%clk 00:13:49]} 10. Ne5
{[%emt 00:00:31] [%clk 00:14:29]} Bf5 {[%emt 00:01:02] [%clk 00:12:56]} 11. e4
{[%emt 00:00:15] [%clk 00:14:25]} dxe4 {[%emt 00:00:24] [%clk 00:12:41]} 12.
Nxe4 {[%emt 00:00:04] [%clk 00:14:32]} Rd8 {[%emt 00:01:08] [%clk 00:11:42]} 13.
Bb2 {[%emt 00:00:23] [%clk 00:14:20]} Nbd7 {[%emt 00:00:34] [%clk 00:11:17]} 14.
Nxd7 {[%emt 00:04:02] [%clk 00:10:29]} Nxe4 {[%emt 00:00:27] [%clk 00:11:00]}
15. Bxe4 {[%emt 00:00:14] [%clk 00:10:25]} Bxe4 {[%emt 00:00:06] [%clk
00:11:03]} 16. Qxe4 {[%emt 00:00:05] [%clk 00:10:31]} Rxd7 {[%emt 00:00:01]
[%clk 00:11:11]} 17. Rfd1 {[%emt 00:01:30] [%clk 00:09:12]} Rad8 {[%emt
00:00:04] [%clk 00:11:16]} 18. Rd2 {[%emt 00:01:04] [%clk 00:08:18]} Qa5 {[%emt
00:01:59] [%clk 00:09:27]} 19. Qe3 {[%emt 00:00:38] [%clk 00:07:50]} e6 {[%emt
00:00:30] [%clk 00:09:07]} 20. Bc3 {[%emt 00:00:11] [%clk 00:07:49]} Qa3 {[%emt
00:01:40] [%clk 00:07:37]} 21. Rad1 {[%emt 00:00:12] [%clk 00:07:48]} b5 {[%emt
00:00:05] [%clk 00:07:41]} 22. Bb2 {[%emt 00:01:30] [%clk 00:06:29]} Qa6 {[%emt
00:00:10] [%clk 00:07:41]} 23. Qe2 {[%emt 00:00:51] [%clk 00:05:48]} bxc4 {[%emt
00:01:02] [%clk 00:06:49]} 24. bxc4 {[%emt 00:00:44] [%clk 00:05:14]} Qxa2
{[%emt 00:00:52] [%clk 00:06:06]} 25. Ba1 {[%emt 00:02:10] [%clk 00:03:15]} Qa6
{[%emt 00:00:09] [%clk 00:06:06]} 26. Ra2 {[%emt 00:00:17] [%clk 00:03:10]} Qb6
{[%emt 00:01:01] [%clk 00:05:06]} 27. Rad2 {[%emt 00:00:41] [%clk 00:02:47]} Qc7
{[%emt 00:00:13] [%clk 00:05:02]} 28. Qe4 {[%emt 00:00:23] [%clk 00:02:34]} Qb6
{[%emt 00:00:54] [%clk 00:04:18]} 29. h4 {[%emt 00:00:47] [%clk 00:01:58]} Qa6
{[%emt 00:00:41] [%clk 00:03:46]} 30. c5 {[%emt 00:01:55] [%clk 00:00:14]} Rd5
{[%emt 00:00:28] [%clk 00:03:28]} 31. Bc3 {[%emt 00:00:07] [%clk 00:00:17]} Qc4
{[%emt 00:00:22] [%clk 00:03:15]} 32. Qe3 {[%emt 00:00:04] [%clk 00:00:24]} h5
{[%emt 00:00:17] [%clk 00:03:07]} 33. Kg2 {[%emt 00:00:17] [%clk 00:00:17]} Kh7
{[%emt 00:00:40] [%clk 00:02:37]} 34. Qf3 {[%emt 00:00:13] [%clk 00:00:14]} R8d7
{[%emt 00:00:08] [%clk 00:02:39]} 35. Qe3 {[%emt 00:00:13] [%clk 00:00:12]} Rf5
{[%emt 00:00:14] [%clk 00:02:31]} 36. Ba1 {[%emt 00:00:11] [%clk 00:00:14]} Qd5+
{[%emt 00:00:04] [%clk 00:02:38]} 37. Kg1 {[%emt 00:00:09] [%clk 00:00:15]} Rf3
{[%emt 00:00:24] [%clk 00:02:23]} 38. Qe2 {[%emt 00:00:02] [%clk 00:00:24]} Bh6
{[%emt 00:00:34] [%clk 00:01:59]} 39. Ra2 {[%emt 00:00:22] [%clk 00:00:12]} Bg7
{[%emt 00:00:22] [%clk 00:01:46]} 40. Rad2 {[%emt 00:00:04] [%clk 00:00:19]} Qf5
{[%emt 00:00:15] [%clk 00:01:39]} 41. Qa6 {[%emt 00:00:19] [%clk 00:00:12]} Qd5
{[%emt 00:00:27] [%clk 00:01:22]} 42. Qe2 {[%emt 00:00:04] [%clk 00:00:18]} Bf6
{[%emt 00:00:05] [%clk 00:01:27]} 43. Bb2 {[%emt 00:00:17] [%clk 00:00:11]} Rb3
{[%emt 00:00:19] [%clk 00:01:16]} 44. Ba1 {[%emt 00:00:05] [%clk 00:00:18]} Qf3
{[%emt 00:00:08] [%clk 00:01:17]} 45. Qxf3 {[%emt 00:00:17] [%clk 00:00:11]}
Rxf3 {[%emt 00:00:01] [%clk 00:01:26]} 46. Ra2 {[%emt 00:00:04] [%clk 00:00:18]}
e5 {[%emt 00:00:40] [%clk 00:00:56]} 47. d5 {[%emt 00:00:19]} cxd5 {[%emt
00:00:14] [%clk 00:00:49]} 48. c6 {[%emt 00:00:02] [%clk 00:00:19]} Rc7 {[%emt
00:00:28] [%clk 00:00:32]} 49. Rxd5 {[%emt 00:00:01] [%clk 00:00:28]} Rxc6
{[%emt 00:00:02] [%clk 00:00:40]} 50. Bxe5 {[%emt 00:00:25] [%clk 00:00:13]}
Bxe5 {[%emt 00:00:10] [%clk 00:00:39]} 51. Rxe5 {[%emt 00:00:02] [%clk
00:00:22]} a6 {[%emt 00:00:17] [%clk 00:00:32]} 52. Rea5 {[%emt 00:00:04] [%clk
00:00:29]} Rff6 {[%emt 00:00:05] [%clk 00:00:36]} 53. Kg2 {[%emt 00:00:02] [%clk
00:00:36]} Kg7 {[%emt 00:00:02] [%clk 00:00:44]} 54. R5a4 {[%emt 00:00:06] [%clk
00:00:41]} Kf8 {[%emt 00:00:02] [%clk 00:00:51]} 55. Ra5 {[%emt 00:00:08] [%clk
00:00:44]} Ke7 {[%emt 00:00:02] [%clk 00:00:58]} 56. R5a4 {[%emt 00:00:22] [%clk
00:00:34]} Kd7 {[%emt 00:00:01] [%clk 00:01:05]} 57. R4a3 {[%emt 00:00:18] [%clk
00:00:27]} Kc7 {[%emt 00:00:01] [%clk 00:01:14]} 58. Ra4 {[%emt 00:00:10] [%clk
00:00:27]} Kb7 {[%emt 00:00:02] [%clk 00:01:22]} 59. Rb4+ {[%emt 00:00:06] [%clk
00:00:32]} Rb6 {[%emt 00:00:02] [%clk 00:01:28]} 60. Rd4 {[%emt 00:00:18] [%clk
00:00:25]} Rbd6 {[%emt 00:00:23] [%clk 00:01:15]} 61. Rb4+ {[%emt 00:00:02]
[%clk 00:00:33]} Ka7 {[%emt 00:00:01] [%clk 00:01:23]} 62. Rc2 {[%emt 00:00:17]
[%clk 00:00:27]} Rc6 {[%emt 00:00:14] [%clk 00:01:18]} 63. Rd2 {[%emt 00:00:02]
[%clk 00:00:35]} Rfd6 {[%emt 00:00:11] [%clk 00:01:17]} 64. Re2 {[%emt 00:00:02]
[%clk 00:00:44]} Rd7 {[%emt 00:00:16] [%clk 00:01:10]} 65. Rbb2 {[%emt 00:00:24]
[%clk 00:00:31]} Rdc7 {[%emt 00:00:28] [%clk 00:00:50]} 66. Ra2 {[%emt 00:00:21]
[%clk 00:00:22]} Rc5 {[%emt 00:00:04] [%clk 00:00:54]} 67. Kf3 {[%emt 00:00:20]
[%clk 00:00:14]} a5 {[%emt 00:00:06] [%clk 00:00:57]} 68. Re8 {[%emt 00:00:10]
[%clk 00:00:14]} Rb7 {[%emt 00:00:28] [%clk 00:00:39]} 69. Ke3 {[%emt 00:00:13]
[%clk 00:00:11]} Rf5 {[%emt 00:00:09] [%clk 00:00:40]} 70. Rd8 {[%emt 00:00:10]
[%clk 00:00:11]} Re7+ {[%emt 00:00:08] [%clk 00:00:42]} 71. Kd4 {[%emt 00:00:09]
[%clk 00:00:13]} Kb7 {[%emt 00:00:04] [%clk 00:00:46]} 72. Rb2+ {[%emt 00:00:10]
[%clk 00:00:14]} Kc7 {[%emt 00:00:05] [%clk 00:00:52]} 73. Rdb8 {[%emt 00:00:06]
[%clk 00:00:17]} Rd7+ {[%emt 00:00:02] [%clk 00:01:01]} 74. Ke4 {[%emt 00:00:14]
[%clk 00:00:12]} Kd6 {[%emt 00:00:09] [%clk 00:00:59]} 75. Ra8 {[%emt 00:00:11]
[%clk 00:00:15]} Re7+ {[%emt 00:00:07] [%clk 00:01:01]} 76. Kd4 {[%emt 00:00:04]
[%clk 00:00:21]} Rd5+ {[%emt 00:00:03] [%clk 00:01:09]} 77. Kc4 {[%emt 00:00:08]
[%clk 00:00:23]} Rc7+ {[%emt 00:00:41] [%clk 00:00:36]} 78. Kb3 {[%emt 00:00:03]
[%clk 00:00:32]} Rb7+ {[%emt 00:00:05] [%clk 00:00:41]} 79. Ka2 {[%emt 00:00:08]
[%clk 00:00:34]} Rxb2+ {[%emt 00:00:01] [%clk 00:00:49]} 80. Kxb2 {[%emt
00:00:02] [%clk 00:00:44]} Rd2+ {[%emt 00:00:02] [%clk 00:00:56]} 81. Kc1 {[%emt
00:00:10] [%clk 00:00:44]} Rxf2 {[%emt 00:00:06] [%clk 00:00:59]} 82. Rxa5
{[%emt 00:00:03] [%clk 00:00:51]} f6 {[%emt 00:00:37] [%clk 00:00:32]} 83. Ra3
{[%emt 00:00:18] [%clk 00:00:44]} Ke5 {[%emt 00:00:02] [%clk 00:00:35]} 84. Kd1
{[%emt 00:00:21] [%clk 00:00:38]} Ke4 {[%emt 00:00:14] [%clk 00:00:29]} 85. Ke1
{[%emt 00:00:15] [%clk 00:00:36]} Rf3 {[%emt 00:00:02] [%clk 00:00:35]} 86. Ra4+
{[%emt 00:00:07] [%clk 00:00:40]} Kf5 {[%emt 00:00:02] [%clk 00:00:39]} 87. Ke2
{[%emt 00:00:43] [%clk 00:00:11]} Rxg3 {[%emt 00:00:02] [%clk 00:00:46]} 88. Kf2
{[%emt 00:00:11] [%clk 00:00:11]} Rg4 {[%emt 00:00:02] [%clk 00:00:52]} 89. Ra5+
{[%emt 00:00:06] [%clk 00:00:16]} Ke6 {[%emt 00:00:02] [%clk 00:01:00]} 90. Ra6+
{[%emt 00:00:08] [%clk 00:00:19]} Kf7 {[%emt 00:00:01] [%clk 00:01:08]} 91. Ra7+
{[%emt 00:00:07] [%clk 00:00:23]} Kf8 {[%emt 00:00:01] [%clk 00:01:16]} 92. Ra6
{[%emt 00:00:09] [%clk 00:00:25]} Kg7 {[%emt 00:00:02] [%clk 00:01:23]} 93. Ra7+
{[%emt 00:00:10] [%clk 00:00:27]} Kh6 {[%clk 00:01:31]} 94. Ra6 {[%emt 00:00:02]
[%clk 00:00:35]} f5 {[%emt 00:00:03] [%clk 00:01:38]} 95. Kf3 {[%emt 00:00:16]
[%clk 00:00:30]} Rxh4 {[%emt 00:00:04] [%clk 00:01:42]} 96. Kg3 {[%emt 00:00:09]
[%clk 00:00:32]} Rb4 {[%emt 00:00:03] [%clk 00:01:48]} 97. Ra3 {[%emt 00:00:04]
[%clk 00:00:39]} h4+ {[%emt 00:00:11] [%clk 00:01:47]} 98. Kh3 {[%emt 00:00:03]
[%clk 00:00:46]} Kh5 {[%emt 00:00:03] [%clk 00:01:53]} 0-1

[Site "Europe Echecs"]

[Event "Championnat d'Europe Rapide"]
[Date "2024.12.08"]
[White "Safarli, Eltaj"]
[Black "Fedoseev, Vladimir"]
[WhiteElo "2610"]
[BlackElo "2709"]
[Round "10.1"]
[Result "0-1"]
[TimeControl "900+10"]

1. e4 {[%clk 00:15:17]} e5 {[%emt 00:00:13] [%clk 00:15:07]} 2. Nf3 {[%emt
00:00:03] [%clk 00:15:24]} Nf6 {[%emt 00:00:03] [%clk 00:15:15]} 3. d4 {[%emt
00:00:21] [%clk 00:15:13]} Nxe4 {[%emt 00:00:16] [%clk 00:15:08]} 4. Bd3 {[%emt
00:00:02] [%clk 00:15:21]} d5 {[%emt 00:00:03] [%clk 00:15:15]} 5. dxe5 {[%emt
00:00:53] [%clk 00:14:39]} Nc5 {[%emt 00:00:47] [%clk 00:14:38]} 6. Be2 {[%emt
00:00:02] [%clk 00:14:47]} Be7 {[%emt 00:00:40] [%clk 00:14:08]} 7. O-O {[%emt
00:00:03] [%clk 00:14:53]} O-O {[%emt 00:00:07] [%clk 00:14:12]} 8. Be3 {[%emt
00:00:04] [%clk 00:14:58]} Nc6 {[%emt 00:01:08] [%clk 00:13:14]} 9. Nc3 {[%emt
00:00:13] [%clk 00:14:55]} Be6 {[%emt 00:00:04] [%clk 00:13:20]} 10. Bb5 {[%emt
00:00:55] [%clk 00:14:10]} a6 {[%emt 00:03:07] [%clk 00:10:24]} 11. Bxc6 {[%emt
00:00:14] [%clk 00:14:06]} bxc6 {[%emt 00:00:02] [%clk 00:10:32]} 12. Nd4 {[%emt
00:00:38] [%clk 00:13:37]} Qd7 {[%emt 00:01:32] [%clk 00:09:11]} 13. Qd2 {[%emt
00:02:13] [%clk 00:11:34]} Nb7 {[%emt 00:00:25] [%clk 00:08:56]} 14. Bg5 {[%emt
00:02:05] [%clk 00:09:39]} Bxg5 {[%emt 00:00:34] [%clk 00:08:32]} 15. Qxg5
{[%emt 00:00:01] [%clk 00:09:47]} c5 {[%emt 00:00:02] [%clk 00:08:41]} 16. Nde2
{[%emt 00:01:06] [%clk 00:08:51]} h6 {[%emt 00:00:11] [%clk 00:08:40]} 17. Qg3
{[%emt 00:01:05] [%clk 00:07:55]} Bf5 {[%emt 00:01:17] [%clk 00:07:34]} 18. Nf4
{[%emt 00:00:49] [%clk 00:07:16]} c6 {[%emt 00:00:01] [%clk 00:07:43]} 19. Rac1
{[%emt 00:02:15] [%clk 00:05:10]} f6 {[%emt 00:00:11] [%clk 00:07:42]} 20. exf6
{[%emt 00:01:06] [%clk 00:04:14]} Rxf6 {[%emt 00:00:02] [%clk 00:07:51]} 21. Na4
{[%emt 00:00:07] [%clk 00:04:17]} Raf8 {[%emt 00:00:01] [%clk 00:07:59]} 22. Nd3
{[%emt 00:01:09] [%clk 00:03:18]} c4 {[%emt 00:01:35] [%clk 00:06:35]} 23. Ndc5
{[%emt 00:00:07] [%clk 00:03:21]} Nxc5 {[%emt 00:00:02] [%clk 00:06:43]} 24.
Nxc5 {[%emt 00:00:01] [%clk 00:03:29]} Qd8 {[%emt 00:00:02] [%clk 00:06:51]} 25.
Qe5 {[%emt 00:01:19] [%clk 00:02:21]} Rg6 {[%emt 00:01:08] [%clk 00:05:52]} 26.
f4 {[%emt 00:01:13] [%clk 00:01:18]} d4 {[%emt 00:02:25] [%clk 00:03:38]} 27.
Rf2 {[%emt 00:00:36] [%clk 00:00:52]} Qd5 {[%emt 00:01:05] [%clk 00:02:43]} 28.
Qxd5+ {[%emt 00:00:17] [%clk 00:00:45]} cxd5 {[%emt 00:00:01] [%clk 00:02:52]}
29. Rd1 {[%emt 00:00:22] [%clk 00:00:33]} Rc8 {[%emt 00:00:04] [%clk 00:02:58]}
30. b4 {[%emt 00:00:19] [%clk 00:00:24]} a5 {[%emt 00:00:16] [%clk 00:02:52]}
31. a3 {[%clk 00:00:33]} axb4 {[%emt 00:00:22] [%clk 00:02:40]} 32. axb4 {[%clk
00:00:42]} Rb6 {[%emt 00:00:02] [%clk 00:02:48]} 33. Rxd4 {[%emt 00:00:17] [%clk
00:00:35]} Rxb4 {[%emt 00:00:02] [%clk 00:02:56]} 34. Rxd5 {[%emt 00:00:04]
[%clk 00:00:41]} Rb1+ {[%emt 00:00:01] [%clk 00:03:05]} 35. Rf1 {[%emt 00:00:01]
[%clk 00:00:50]} Bxc2 {[%emt 00:00:01] [%clk 00:03:14]} 36. Rxb1 {[%emt
00:00:29] [%clk 00:00:32]} Bxb1 {[%emt 00:00:01] [%clk 00:03:23]} 37. Kf2 {[%clk
00:00:41]} c3 {[%emt 00:00:03] [%clk 00:03:30]} 38. Ke3 {[%emt 00:00:04] [%clk
00:00:47]} Ba2 {[%emt 00:00:54] [%clk 00:02:45]} 39. Re5 {[%emt 00:00:07] [%clk
00:00:50]} Rd8 {[%emt 00:00:11] [%clk 00:02:44]} 40. Nd3 {[%emt 00:00:33] [%clk
00:00:27]} Bb1 {[%emt 00:01:27] [%clk 00:01:27]} 41. Nb4 {[%emt 00:00:04] [%clk
00:00:33]} Rc8 {[%emt 00:00:08] [%clk 00:01:29]} 42. Rb5 {[%emt 00:00:31] [%clk
00:00:12]} c2 {[%emt 00:00:12] [%clk 00:01:27]} 43. Nxc2 {[%emt 00:00:10] [%clk
00:00:13]} Bxc2 {[%emt 00:00:02] [%clk 00:01:36]} 44. g4 {[%emt 00:00:07] [%clk
00:00:15]} Rc3+ {[%emt 00:00:30] [%clk 00:01:15]} 45. Kd2 {[%emt 00:00:05] [%clk
00:00:20]} Rc4 {[%emt 00:00:01] [%clk 00:01:25]} 46. h3 {[%emt 00:00:18] [%clk
00:00:13]} Ba4 {[%emt 00:00:19] [%clk 00:01:14]} 47. Rb8+ {[%emt 00:00:07] [%clk
00:00:17]} Kh7 {[%emt 00:00:01] [%clk 00:01:23]} 48. f5 {[%emt 00:00:12] [%clk
00:00:15]} Rc2+ {[%emt 00:00:02] [%clk 00:01:31]} 49. Kd3 {[%emt 00:00:14] [%clk
00:00:12]} Rh2 {[%emt 00:00:02] [%clk 00:01:38]} 50. Kd4 {[%emt 00:00:09] [%clk
00:00:13]} Rxh3 {[%emt 00:00:03] [%clk 00:01:44]} 0-1

[Site "Europe Echecs"]

[Event "Championnat d'Europe Rapide"]
[Date "2024.12.08"]
[White "Korobov, Anton"]
[Black "Paichadze, Luka"]
[WhiteElo "2629"]
[BlackElo "2532"]
[Round "10.2"]
[Result "1-0"]
[TimeControl "900+10"]

1. e4 {[%clk 00:15:17]} c6 {[%emt 00:00:02] [%clk 00:15:19]} 2. d4 {[%emt
00:00:02] [%clk 00:15:24]} d5 {[%emt 00:00:02] [%clk 00:15:28]} 3. e5 {[%emt
00:00:02] [%clk 00:15:32]} Bf5 {[%emt 00:00:02] [%clk 00:15:36]} 4. Nf3 {[%emt
00:00:03] [%clk 00:15:39]} e6 {[%emt 00:00:04] [%clk 00:15:42]} 5. Be2 {[%emt
00:00:01] [%clk 00:15:47]} Nd7 {[%emt 00:00:44] [%clk 00:15:09]} 6. O-O {[%emt
00:00:05] [%clk 00:15:51]} Ne7 {[%emt 00:00:23] [%clk 00:14:57]} 7. c3 {[%emt
00:00:02] [%clk 00:15:59]} h6 {[%emt 00:00:07] [%clk 00:15:00]} 8. a4 {[%emt
00:00:06] [%clk 00:16:02]} g5 {[%emt 00:00:21] [%clk 00:14:50]} 9. a5 {[%emt
00:00:20] [%clk 00:15:52]} a6 {[%emt 00:00:05] [%clk 00:14:55]} 10. Ne1 {[%emt
00:00:21] [%clk 00:15:40]} c5 {[%emt 00:00:13] [%clk 00:14:54]} 11. Nd2 {[%emt
00:00:37] [%clk 00:15:12]} Nc6 {[%emt 00:00:44] [%clk 00:14:20]} 12. Qa4 {[%emt
00:01:50] [%clk 00:13:32]} Bg7 {[%emt 00:01:38] [%clk 00:12:52]} 13. Bd3 {[%emt
00:00:20] [%clk 00:13:21]} Bxd3 {[%emt 00:00:43] [%clk 00:12:19]} 14. Nxd3
{[%emt 00:00:01] [%clk 00:13:30]} O-O {[%emt 00:00:28] [%clk 00:12:03]} 15. Nf3
{[%emt 00:03:40] [%clk 00:09:59]} cxd4 {[%emt 00:03:48] [%clk 00:08:24]} 16.
cxd4 {[%emt 00:00:02] [%clk 00:10:07]} f6 {[%emt 00:01:31] [%clk 00:07:04]} 17.
exf6 {[%emt 00:00:20] [%clk 00:09:57]} Qxf6 {[%emt 00:00:21] [%clk 00:06:53]}
18. Be3 {[%emt 00:00:02] [%clk 00:10:04]} g4 {[%emt 00:02:04] [%clk 00:05:00]}
19. Nd2 {[%emt 00:00:39] [%clk 00:09:34]} Rf7 {[%emt 00:00:29] [%clk 00:04:42]}
20. Nb3 {[%emt 00:00:22] [%clk 00:09:22]} h5 {[%emt 00:00:38] [%clk 00:04:14]}
21. Rad1 {[%emt 00:03:05] [%clk 00:06:27]} Raf8 {[%emt 00:00:32] [%clk
00:03:53]} 22. Nbc5 {[%emt 00:01:36] [%clk 00:05:00]} Nxc5 {[%emt 00:00:02]
[%clk 00:04:01]} 23. Nxc5 {[%emt 00:00:01] [%clk 00:05:08]} h4 {[%emt 00:00:17]
[%clk 00:03:54]} 24. Nxb7 {[%emt 00:01:17] [%clk 00:04:02]} e5 {[%emt 00:01:08]
[%clk 00:02:56]} 25. Nc5 {[%emt 00:00:54] [%clk 00:03:18]} h3 {[%emt 00:00:52]
[%clk 00:02:13]} 26. Nd3 {[%emt 00:01:16] [%clk 00:02:12]} hxg2 {[%emt 00:00:15]
[%clk 00:02:08]} 27. Rfe1 {[%clk 00:02:22]} Nxd4 {[%emt 00:01:08] [%clk
00:01:11]} 28. Bxd4 {[%emt 00:00:02] [%clk 00:02:29]} exd4 {[%emt 00:00:01]
[%clk 00:01:21]} 29. Kxg2 {[%emt 00:00:26] [%clk 00:02:13]} Qh4 {[%emt 00:00:08]
[%clk 00:01:23]} 30. Qc2 {[%emt 00:00:11] [%clk 00:02:12]} Rf5 {[%emt 00:00:22]
[%clk 00:01:11]} 31. Kh1 {[%emt 00:01:02] [%clk 00:01:20]} Rf3 {[%emt 00:00:58]
[%clk 00:00:22]} 32. Rg1 {[%emt 00:00:14] [%clk 00:01:16]} Rh3 {[%emt 00:00:13]
[%clk 00:00:20]} 33. Rg2 {[%emt 00:00:01] [%clk 00:01:25]} Qh5 {[%emt 00:00:09]
[%clk 00:00:21]} 34. Re1 {[%emt 00:00:25] [%clk 00:01:10]} Kh8 {[%emt 00:00:04]
[%clk 00:00:27]} 35. Kg1 {[%emt 00:00:05] [%clk 00:01:15]} Qf5 {[%emt 00:00:04]
[%clk 00:00:33]} 36. Rd1 {[%emt 00:00:06] [%clk 00:01:18]} Rf3 {[%emt 00:00:25]
[%clk 00:00:19]} 37. Nb4 {[%emt 00:00:24] [%clk 00:01:04]} Qf7 {[%emt 00:00:13]
[%clk 00:00:16]} 38. Rxg4 {[%emt 00:00:09] [%clk 00:01:06]} Rf4 {[%emt 00:00:08]
[%clk 00:00:18]} 39. Rg2 {[%emt 00:00:06] [%clk 00:01:10]} Qh5 {[%emt 00:00:10]
[%clk 00:00:18]} 40. Rd3 {[%emt 00:00:29] [%clk 00:00:51]} Re4 {[%emt 00:00:06]
[%clk 00:00:22]} 41. Qd1 {[%emt 00:00:06] [%clk 00:00:55]} Rfe8 {[%emt 00:00:07]
[%clk 00:00:25]} 42. Qxh5+ {[%emt 00:00:02] [%clk 00:01:03]} 1-0

[Site "Europe Echecs"]

[Event "Championnat d'Europe Rapide"]
[Date "2024.12.08"]
[White "Dardha, Daniel"]
[Black "Quparadze, Giga"]
[WhiteElo "2639"]
[BlackElo "2537"]
[Round "10.3"]
[Result "1/2-1/2"]
[TimeControl "900+10"]

1. d4 {[%emt 00:00:23] [%clk 00:14:55]} Nf6 {[%emt 00:00:01] [%clk 00:15:19]} 2.
c4 {[%emt 00:00:02] [%clk 00:15:04]} e6 {[%clk 00:15:28]} 3. Nc3 {[%emt
00:00:02] [%clk 00:15:12]} Bb4 {[%emt 00:00:01] [%clk 00:15:36]} 4. e3 {[%emt
00:00:02] [%clk 00:15:20]} O-O {[%emt 00:00:13] [%clk 00:15:33]} 5. Bd3 {[%emt
00:00:04] [%clk 00:15:27]} c5 {[%emt 00:00:01] [%clk 00:15:41]} 6. Nge2 {[%emt
00:00:25] [%clk 00:15:12]} d5 {[%emt 00:00:04] [%clk 00:15:47]} 7. a3 {[%emt
00:00:16] [%clk 00:15:06]} dxc4 {[%emt 00:00:07] [%clk 00:15:50]} 8. Bxc4 {[%emt
00:00:03] [%clk 00:15:13]} Bxc3+ {[%emt 00:00:06] [%clk 00:15:55]} 9. bxc3
{[%emt 00:00:02] [%clk 00:15:21]} Qc7 {[%emt 00:00:08] [%clk 00:15:56]} 10. Ba2
{[%emt 00:00:04] [%clk 00:15:27]} b6 {[%emt 00:00:08] [%clk 00:16:00]} 11. O-O
{[%emt 00:00:03] [%clk 00:15:33]} Bb7 {[%emt 00:00:07] [%clk 00:16:02]} 12. Ng3
{[%emt 00:00:13] [%clk 00:15:30]} Nc6 {[%emt 00:00:19] [%clk 00:15:53]} 13. Re1
{[%emt 00:01:46] [%clk 00:13:54]} Rad8 {[%emt 00:00:03] [%clk 00:16:00]} 14. Rb1
{[%emt 00:00:15] [%clk 00:13:50]} Rd7 {[%emt 00:01:10] [%clk 00:14:59]} 15. Rb2
{[%emt 00:00:10] [%clk 00:13:50]} Rfd8 {[%emt 00:00:02] [%clk 00:15:07]} 16. Rd2
{[%emt 00:00:17] [%clk 00:13:44]} Ba6 {[%emt 00:00:15] [%clk 00:15:02]} 17. Bb2
{[%emt 00:01:38] [%clk 00:12:16]} Na5 {[%emt 00:00:15] [%clk 00:14:56]} 18. f3
{[%emt 00:01:35] [%clk 00:10:51]} Nd5 {[%emt 00:00:25] [%clk 00:14:41]} 19. Bxd5
{[%emt 00:02:24] [%clk 00:08:37]} Rxd5 {[%emt 00:00:14] [%clk 00:14:38]} 20. Rf2
{[%emt 00:00:50] [%clk 00:07:57]} R5d7 {[%emt 00:00:17] [%clk 00:14:30]} 21. Qc2
{[%emt 00:00:47] [%clk 00:07:20]} Nc4 {[%emt 00:00:11] [%clk 00:14:30]} 22. Bc1
{[%emt 00:00:20] [%clk 00:07:10]} e5 {[%emt 00:00:12] [%clk 00:14:28]} 23. Ne4
{[%emt 00:00:45] [%clk 00:06:35]} cxd4 {[%emt 00:00:15] [%clk 00:14:23]} 24.
exd4 {[%emt 00:00:09] [%clk 00:06:36]} exd4 {[%emt 00:00:08] [%clk 00:14:25]}
25. cxd4 {[%emt 00:00:06] [%clk 00:06:40]} Rxd4 {[%emt 00:01:39] [%clk
00:12:55]} 26. Bg5 {[%emt 00:00:42] [%clk 00:06:08]} Rf8 {[%emt 00:00:18] [%clk
00:12:47]} 27. Qc3 {[%emt 00:00:40] [%clk 00:05:38]} Qd7 {[%emt 00:00:16] [%clk
00:12:41]} 28. Bf6 {[%emt 00:01:42] [%clk 00:04:07]} Rd3 {[%emt 00:00:03] [%clk
00:12:48]} 29. Qa1 {[%emt 00:00:02] [%clk 00:04:15]} Rxa3 {[%emt 00:00:15] [%clk
00:12:42]} 30. Qc1 {[%emt 00:00:31] [%clk 00:03:53]} h6 {[%emt 00:00:05] [%clk
00:12:47]} 31. Qf4 {[%emt 00:00:20] [%clk 00:03:44]} Re3 {[%emt 00:01:25] [%clk
00:11:33]} 32. Ra1 {[%emt 00:00:31] [%clk 00:03:23]} Re8 {[%emt 00:01:01] [%clk
00:10:42]} 33. Qg3 {[%emt 00:00:23] [%clk 00:03:09]} g6 {[%emt 00:00:11] [%clk
00:10:42]} 34. Qh4 {[%emt 00:00:35] [%clk 00:02:43]} h5 {[%emt 00:01:38] [%clk
00:09:15]} 35. Bg5 {[%emt 00:00:19] [%clk 00:02:34]} R3xe4 {[%emt 00:01:03]
[%clk 00:08:22]} 36. fxe4 {[%emt 00:00:01] [%clk 00:02:43]} Bb7 {[%emt 00:01:00]
[%clk 00:07:32]} 37. h3 {[%emt 00:00:37] [%clk 00:02:16]} Bxe4 {[%emt 00:00:55]
[%clk 00:06:46]} 38. Bf6 {[%emt 00:00:06] [%clk 00:02:20]} Ne3 {[%emt 00:00:34]
[%clk 00:06:23]} 39. Re1 {[%emt 00:00:49] [%clk 00:01:39]} Nxg2 {[%emt 00:00:55]
[%clk 00:05:39]} 40. Qg5 {[%emt 00:01:08] [%clk 00:00:41]} Kh7 {[%emt 00:00:04]
[%clk 00:05:46]} 41. Rxg2 {[%emt 00:00:34] [%clk 00:00:18]} Bxg2 {[%emt
00:00:02] [%clk 00:05:54]} 42. Rxe8 {[%emt 00:00:02] [%clk 00:00:26]} Qxe8
{[%emt 00:00:01] [%clk 00:06:03]} 43. Kxg2 {[%emt 00:00:02] [%clk 00:00:34]}
Qe2+ {[%emt 00:00:03] [%clk 00:06:10]} 44. Kg3 {[%emt 00:00:04] [%clk 00:00:40]}
Qe1+ {[%emt 00:00:03] [%clk 00:06:16]} 45. Kg2 {[%emt 00:00:01] [%clk 00:00:48]}
Qe2+ {[%emt 00:00:02] [%clk 00:06:25]} 46. Kg3 {[%emt 00:00:01] [%clk 00:00:57]}
Qe1+ {[%emt 00:00:05] [%clk 00:06:30]} 47. Kg2 {[%emt 00:00:01] [%clk 00:01:06]}
Qe2+ {[%emt 00:00:02] [%clk 00:06:39]} 1/2-1/2

[Site "Europe Echecs"]